[Event "45th FIDE Womens Olympiad 2024"]
[Site "Budapest"]
[Date "2024.09.15"]
[Round "5.19"]
[White "Al Asmar, Remy"]
[Black "Gba, Zotta Marcelle Auror"]
[Result "1-0"]
[ECO "A13"]
[WhiteElo "1661"]
[BlackElo "1427"]
[PlyCount "111"]
[EventDate "2024.09.05"]
[EventType "team-tourn"]
[EventCountry "HUN"]
[WhiteTeam "Lebanon"]
[BlackTeam "Cote d/^Ivoire"]
[WhiteTeamCountry "LBN"]
[TimeControl "40/5400+30:1800+30"]

1. Nf3 e6 2. c4 d5 3. e3 Bd6 4. b3 Ne7 5. Qc2 b6 6. Bb2 f6 7. Bd3 Nf5 8. cxd5 g6 9. dxe6 Bxe6 10. Be4 c6 11. g4 Ng7 12. Bxc6+ Nxc6 13. Qxc6+ Kf7 14. g5 Rc8 15. Qe4 Bf5 16. Qd5+ Be6 17. Qd4 Ne8 18. gxf6 Nxf6 19. Ng5+ Ke8 20. Nxe6 Qe7 21. Ng5 Be5 22. Qa4+ Kf8 23. Ba3 Bd6 24. Bxd6 Qxd6 25. Qa3 Ne8 26. Qxd6+ Nxd6 27. Nc3 Rc5 28. Ne6+ Kf7 29. Nxc5 bxc5 30. Rc1 Rc8 31. Na4 c4 32. bxc4 Nxc4 33. d3 Nd6 34. Rxc8 Nxc8 35. Kd2 Kf6 36. Rc1 Ne7 37. Rc7 a6 38. Rxe7 Kxe7 39. Nc5 a5 40. d4 Kd6 41. e4 h6 42. e5+ Kd5 43. e6 Kd6 44. d5 Ke7 45. Ke3 Kd6 46. Nb7+ Ke7 47. Kd4 Kf6 48. e7 Kxe7 49. Ke5 g5 50. d6+ Ke8 51. Ke6 Kf8 52. d7 Kg7 53. Kf5 Kf7 54. d8=Q Kg7 55. Qe7+ Kg8 56. Kg6 1-0

[Event "45th FIDE Womens Olympiad 2024"]
[Site "Budapest"]
[Date "2024.09.15"]
[Round "5.20"]
[White "Khotenashvili, Bella"]
[Black "Malikova, Marjona"]
[Result "1-0"]
[ECO "D02"]
[WhiteElo "2432"]
[BlackElo "2083"]
[Annotator "TA"]
[PlyCount "139"]
[EventDate "2024.09.05"]
[EventType "team-tourn"]
[EventCountry "HUN"]
[SourceTitle "playchess.com"]
[Source "ChessBase"]
[SourceQuality "1"]
[WhiteTeam "Georgia"]
[BlackTeam "Uzbekistan"]
[WhiteTeamCountry "GEO"]
[BlackTeamCountry "UZB"]
[TimeControl "40/5400+30:1800+30"]

{[%evp 45,139,119,129,137,180,139,135,121,132,129,138,128,206,120,118,127,127,122,118,124,121,117,157,143,144,143,178,176,333,144,283,264,302,291,297,293,304,295,297,278,334,343,319,298,280,243,270,252,368,354,499,500,503,478,573,566,717,703,898,760,1290,1247,1401,1438,1547,1516,1256,679,704,647,629,608,853,842,901,896,1071,1057,1150,1150,4827,1505,5477,2933,29964,29966,29977,29978,29989,29990,29990,29987,29987,29986,29988,29987]} 1. d4 {[%emt 0:00:05]} d5 {[%emt 0:00:08]} 2. Bf4 {[%emt 0:00:30]} Nf6 {[%emt 0:00:28]} 3. Nf3 {[%emt 0:00:06]} e6 {[%emt 0:00:40]} 4. e3 {[%emt 0:00:26]} Bd6 {[%emt 0:00:33]} 5. Ne5 {[%emt 0:00:24]} O-O {[%emt 0:01:12]} 6. Nd2 {[%emt 0:00:30]} c5 {[%emt 0:00:56]} 7. c3 {[%emt 0:00:40]} Nc6 {[%emt 0:02:20]} 8. Bd3 {[%emt 0:01:44]} Qc7 {[%emt 0:07:37]} 9. Ndf3 {[%emt 0:00:31]} Ne4 {[%emt 0:02:29]} 10. O-O {[%emt 0:06:27]} f6 {[%emt 0:05:54]} 11. Nxc6 {[%emt 0:00:34]} Bxf4 {[%emt 0:09:25]} 12. exf4 {[%emt 0:00:31]} Qxc6 {[%emt 0:02:20]} 13. Qe2 {[%emt 0:14:30]} Nd6 {[%emt 0:15:28]} 14. Qc2 {[%emt 0:01:19]} f5 {[%emt 0:03:02]} 15. dxc5 {[%emt 0:08:59]} Qxc5 {[%emt 0:01:07]} 16. Nd4 {[%emt 0:04:23]} Bd7 {[%emt 0:05:48]} 17. Rfe1 {[%emt 0:02:39]} Rae8 {[%emt 0:00:40]} 18. Re3 {[%emt 0:14:00]} Nf7 {[%emt 0:11:03]} 19. Rae1 {[%emt 0:06:42]} Qd6 {[%emt 0:00:06]} 20. Qe2 {[%emt 0:04:13]} Nd8 {[%emt 0:03:06]} 21. g3 {[%emt 0:02:11]} a6 {[%emt 0:01:39]} 22. h4 {[%emt 0:02:10]} g6 {[%emt 0:00:31]} 23. Bc2 {[%emt 0:05:46]} Rf6 {[%emt 0:00:58]} 24. Bb3 {[%emt 0:03:01]} Re7 {[%emt 0:01:56]} 25. Qd1 {[%emt 0:08:51]} b5 {[%emt 0:02:43]} 26. Nf3 {[%emt 0:02:54]} Rg7 {[%emt 0:02:17]} 27. Qd4 {[%emt 0:01:13]} Rf8 {[%emt 0:02:39]} 28. Ng5 {[%emt 0:00:41]} h6 {[%emt 0:01:38] [#]} (28... Kh8 $16 {keeps fighting.} 29. a4 h6) 29. Nf3 {[%emt 0:02:14]} (29. Nxe6 $1 $18 Bxe6 30. Rxe6 Nxe6 31. Rxe6) 29... Kh7 $16 {[%emt 0:01:15]} 30. Qd1 {[%emt 0:02:43]} Nc6 {[%emt 0:01:23]} 31. a4 {[%emt 0:03:10]} Rb8 {[%emt 0:01:54]} 32. axb5 {[%emt 0:00:46]} axb5 {[%emt 0:00:01]} 33. Bc2 {[%emt 0:00:43]} Qc5 {[%emt 0:00:26]} 34. b4 {[%emt 0:00:55]} Qd6 {[%emt 0:00:44]} 35. Bd3 {[%emt 0:00:25]} Qc7 {[%emt 0:00:36]} 36. Qe2 {[%emt 0:00:38]} (36. Rxe6 Bxe6 37. Rxe6 Re7 (37... Nd8 $2 38. Re3 $18) 38. Rxe7+ Nxe7 $11) 36... Qb6 $2 {[%emt 0:01:26] [#]} (36... Nd8 {was worth a try.} 37. Qd2 Nc6) 37. Rd1 {[%emt 0:00:40]} (37. h5 $1 $18 {is the precise move to win.}) 37... Qb7 {[%emt 0:01:24]} (37... Kh8 $16 {was called for.} 38. Qe1 Kg8) 38. h5 $18 {[%emt 0:00:31]} gxh5 {[%emt 0:03:09]} 39. Rxe6 $1 {[%emt 0:00:09]} Bxe6 {[%emt 0:00:01]} 40. Qxe6 {[%emt 0:00:02]} Ne7 {[%emt 0:00:44]} 41. Bxf5+ {[%emt 0:07:06]} Nxf5 {[%emt 0:00:51]} 42. Qxf5+ {[%emt 0:00:10]} Kh8 {[%emt 0:02:06]} 43. Qxh5 {[%emt 0:04:09]} Qb6 {[%emt 0:02:23]} 44. Kg2 {[%emt 0:01:19]} (44. Qxd5 Rxg3+ 45. Kf1 Rg7 $14) 44... Rf8 {[%emt 0:03:18]} 45. Rd4 {[%emt 0:09:04]} Qd6 {[%emt 0:06:53]} 46. Ne5 {[%emt 0:02:23]} (46. Rxd5 Qxf4 47. Rxb5 Qf6 $18) 46... Kh7 {[%emt 0:00:55]} (46... Kg8 $142 47. Qe2 Rb7) 47. Qf3 {[%emt 0:00:34]} Rd8 {[%emt 0:00:52]} (47... Qe6 {was necessary.} 48. Qd3+ (48. Rxd5 Rxf4 49. Qd1 Rf5 $18) 48... Qf5 49. Rxd5 (49. Qxb5 Rc8 $18) 49... Qxd3 50. Nxd3 Rc8) 48. Qd3+ $18 {[%emt 0:00:09]} Kh8 {[%emt 0:03:35]} 49. Qxb5 {[%emt 0:00:28]} Qc7 {[%emt 0:01:22]} 50. Qd3 {[%emt 0:01:40]} Qb7 {[%emt 0:00:41]} 51. f5 {[%emt 0:03:14]} Rd6 {[%emt 0:04:43]} 52. Ng6+ {[%emt 0:02:05]} Kg8 {[%emt 0:00:08]} 53. Qe3 {[%emt 0:00:29]} Qf7 {[%emt 0:02:00]} 54. Qxh6 {[%emt 0:00:37]} Rh7 {[%emt 0:01:49]} 55. Qg5 {[%emt 0:00:14]} Qg7 {[%emt 0:02:31]} 56. Ne7+ {[%emt 0:01:29]} Kf8 {[%emt 0:01:04]} 57. Qxg7+ {[%emt 0:00:11]} Rxg7 {[%emt 0:00:01]} 58. Nxd5 {[%emt 0:00:05]} (58. Rxd5 Kxe7 59. Rc5 Rd3 $17) 58... Ra6 {[%emt 0:01:27]} 59. g4 {[%emt 0:00:33]} Ra2 {[%emt 0:00:17]} 60. Kg3 {[%emt 0:00:05]} Rga7 {[%emt 0:00:31]} 61. g5 {[%emt 0:00:25]} Kg7 {[%emt 0:00:07]} 62. Re4 {[%emt 0:00:57]} Kf7 {[%emt 0:00:28]} 63. f3 {[%emt 0:00:20]} Ra1 {[%emt 0:00:06]} 64. Rh4 {[%emt 0:00:36]} Rg1+ {[%emt 0:00:16]} 65. Kf4 {[%emt 0:00:05]} Raa1 {[%emt 0:00:06]} 66. g6+ {[%emt 0:00:08]} Kg7 {[%emt 0:00:10]} 67. Rh7+ {[%emt 0:00:05]} Kf8 {[%emt 0:00:12]} 68. Rf7+ {[%emt 0:00:31]} Ke8 {[%emt 0:00:08]} 69. Nf6+ {[%emt 0:00:10]} Kd8 {[%emt 0:00:05]} 70. g7 {[%emt 0:00:04]} 1-0

[Event "45th FIDE Womens Olympiad 2024"]
[Site "Budapest"]
[Date "2024.09.15"]
[Round "5.21"]
[White "Kashlinskaya, Alina"]
[Black "Atalik, Ekaterina"]
[Result "1/2-1/2"]
[ECO "B12"]
[WhiteElo "2490"]
[BlackElo "2381"]
[Annotator "TA"]
[PlyCount "105"]
[EventDate "2024.09.05"]
[EventType "team-tourn"]
[EventCountry "HUN"]
[SourceTitle "playchess.com"]
[Source "ChessBase"]
[SourceQuality "1"]
[WhiteTeam "Poland"]
[BlackTeam "Turkiye"]
[WhiteTeamCountry "POL"]
[TimeControl "40/5400+30:1800+30"]

1. e4 {[%emt 0:00:06]} c6 {[%emt 0:00:22]} 2. d4 {[%emt 0:00:07]} d5 {[%emt 0:00:13]} 3. f3 {[%emt 0:00:10]} Qb6 {[%emt 0:01:36]} 4. Nc3 {[%emt 0:00:09]} e6 {[%emt 0:01:15]} 5. a3 {[%emt 0:00:08]} Nf6 {[%emt 0:01:09]} 6. e5 {[%emt 0:00:18] B12: Caro-Kann: Advance Variation.} Nfd7 {[%emt 0:03:35]} 7. f4 {[%emt 0:00:13]} c5 {[%emt 0:01:02]} 8. Nf3 {[%emt 0:00:09]} Nc6 {[%emt 0:00:53]} 9. dxc5 {[%emt 0:20:03]} Bxc5 {[%emt 0:05:47]} 10. Bd3 {[%emt 0:14:25]} Be7 $146 {[%emt 0:09:27]} ({Predecessor:} 10... f6 11. exf6 gxf6 12. Qe2 Kd8 13. b4 Nd4 14. Qf2 Nxf3+ 15. Qxf3 Bd4 16. Bb2 Qc6 {1-0 Wei,Y (2729)-Wan,Y (2508) CHN-chT Div A Finals 2023 (3.17)}) 11. Na4 {[%emt 0:16:04]} Qc7 {[%emt 0:02:18]} 12. O-O {[%emt 0:01:25]} O-O {[%emt 0:10:21]} 13. b3 {[%emt 0:07:37]} f6 {[%emt 0:05:47]} 14. Bb2 {[%emt 0:05:05]} fxe5 {[%emt 0:04:07]} 15. fxe5 {[%emt 0:00:54]} a6 {[%emt 0:11:26]} 16. c4 {[%emt 0:01:19]} dxc4 {[%emt 0:07:06]} (16... Ndxe5 17. Bxh7+ Kxh7 18. Nxe5 Rxf1+ 19. Kxf1 Nxe5 20. Qh5+ Kg8 21. Bxe5 $14) (16... Ncxe5 17. Nxe5 Rxf1+ $14 (17... Nxe5 $2 18. Bxh7+ Kxh7 19. Qh5+ $18)) 17. bxc4 {[%emt 0:00:06]} b5 {[%emt 0:08:10]} (17... Ndxe5 $17 18. Be4 Bd7 (18... Nxc4 19. Qc2 $17)) 18. cxb5 $11 {[%emt 0:08:55]} axb5 {[%emt 0:00:22]} 19. Nc3 {[%emt 0:00:08]} b4 {[%emt 0:08:04]} 20. axb4 {[%emt 0:07:08]} Rxa1 {[%emt 0:00:05]} 21. Bxa1 {[%emt 0:00:08]} Nxb4 {[%emt 0:00:16]} 22. Ne4 {[%emt 0:06:30]} (22. Nb5 $11 Qa5 23. Be2) 22... Nc5 {[%emt 0:03:02]} (22... Nxd3 $15 23. Qxd3 Nc5) 23. Bb1 {[%emt 0:04:17]} (23. Nf6+ $1 $11 Bxf6 (23... gxf6 24. Bxh7+ Kxh7 25. Nh4 $11) 24. Bxh7+ Kxh7 25. exf6 gxf6 26. Ng5+ Kg8 (26... fxg5 27. Qh5+ Kg8 28. Qh8#) (26... Kg6 27. Qg4 $11) 27. Bxf6) 23... Ba6 $17 {[%emt 0:02:04]} 24. Re1 {[%emt 0:01:40]} Ncd3 {[%emt 0:01:39]} 25. Re3 {[%emt 0:00:14]} Nf4 {[%emt 0:06:12]} 26. Nd6 {[%emt 0:01:16]} Nbd5 {[%emt 0:01:05]} 27. Re1 {[%emt 0:01:39]} Bxd6 {[%emt 0:00:57]} ({Black should try} 27... Be2 $17 28. Qc2 (28. Rxe2 Nxe2+ 29. Qxe2 Qb6+ 30. Bd4 Qxb1+ 31. Qf1 Qxf1+ 32. Kxf1 g5 $17) 28... Qxc2 29. Bxc2 Nh3+ 30. Kh1 Rxf3 (30... Bxf3 31. gxf3 Bh4 32. Rb1 $15) 31. gxh3 Nf4) 28. exd6 $11 {[%emt 0:00:02]} Qxd6 {[%emt 0:00:07]} 29. Kh1 {[%emt 0:00:48]} Qb6 {[%emt 0:00:41]} 30. Bd4 {[%emt 0:00:42]} Qb4 {[%emt 0:00:32]} 31. Be4 {[%emt 0:02:07]} Qa3 {[%emt 0:01:22]} 32. Qa1 {[%emt 0:01:17]} Qxa1 {[%emt 0:00:34]} 33. Rxa1 {[%emt 0:00:02]} Bd3 {[%emt 0:01:36]} 34. Ra7 {[%emt 0:00:55]} Nf6 {[%emt 0:00:18]} (34... Bxe4 $2 {too greedy.} 35. Rxg7+ Kh8 36. Rg6+ $18) 35. Bxd3 {[%emt 0:01:10]} Nxd3 {[%emt 0:00:05]} 36. g3 {[%emt 0:00:31]} Re8 {[%emt 0:01:46]} 37. Ne5 {[%emt 0:00:28]} Nxe5 {[%emt 0:01:03]} 38. Bxe5 {[%emt 0:00:01]} Rd8 {[%emt 0:00:50]} 39. Re7 {[%emt 0:00:45]} Rd1+ {[%emt 0:00:15]} 40. Kg2 {[%emt 0:00:01]} Re1 {[%emt 0:01:19]} 41. Bxf6 {[%emt 0:05:13]} gxf6 {[%emt 0:00:15]} 42. Kf2 {[%emt 0:00:12]} Re5 {[%emt 0:00:28]} 43. g4 {[%emt 0:03:43]} h5 {[%emt 0:02:02]} 44. gxh5 {[%emt 0:08:09]} Kf8 {[%emt 0:01:57]} 45. Rh7 {[%emt 0:00:06]} Rg5 {[%emt 0:01:26]} 46. Kf3 {[%emt 0:00:46]} Kg8 {[%emt 0:02:57]} 47. Re7 $1 {[%emt 0:00:06]} e5 {[%emt 0:02:35]} 48. h6 $1 {[%emt 0:00:09]} Rh5 {[%emt 0:00:47]} 49. Kg4 {[%emt 0:07:17]} Rxh6 {[%emt 0:04:14]} 50. Kf5 {[%emt 0:00:26]} Rh7 {[%emt 0:01:25]} 51. Re6 $1 {[%emt 0:00:43]} Rh6 {[%emt 0:03:17]} 52. Re7 {[%emt 0:00:19]} Rh7 {[%emt 0:01:57]} 53. Ke4 $2 {[%emt 0:00:26][%mdl 8192]} (53. Re6 $11) 1/2-1/2

[Event "45th FIDE Womens Olympiad 2024"]
[Site "Budapest"]
[Date "2024.09.15"]
[Round "5.21"]
[White "Boitumelo, Sethabathaba"]
[Black "Magne, Kouokam Sylviane"]
[Result "1-0"]
[ECO "D35"]
[WhiteElo "1571"]
[BlackElo "1587"]
[PlyCount "169"]
[EventDate "2024.09.05"]
[EventType "team-tourn"]
[EventCountry "HUN"]
[WhiteTeam "Lesotho"]
[BlackTeam "Cameroon"]
[WhiteTeamCountry "LES"]
[BlackTeamCountry "CAM"]
[TimeControl "40/5400+30:1800+30"]

1. d4 d5 2. c4 e6 3. Nc3 Nf6 4. cxd5 exd5 5. Bg5 c6 6. e3 Bf5 7. Qb3 b6 8. Nf3 Be7 9. Bf4 O-O 10. Be2 c5 11. dxc5 bxc5 12. Qb7 Nbd7 13. Nxd5 Nxd5 14. Qxd5 Be6 15. Qd2 Qb6 16. O-O Bf6 17. Ng5 Rad8 18. Qc2 g6 19. Nxe6 fxe6 20. Rab1 e5 21. Bc4+ Kg7 22. Bg3 h5 23. f3 Nb8 24. b3 Rd6 25. Rbd1 Rfd8 26. Rd3 Nc6 27. Rxd6 Rxd6 28. Rd1 Nb4 29. Rxd6 Qxd6 30. Qe2 h4 31. Be1 g5 32. a3 Nc6 33. Qc2 Qd7 34. Bb5 Qd5 35. Bxc6 Qxc6 36. Qc4 Qd6 37. Qc2 Qb6 38. Kf2 Qe6 39. Qd3 g4 40. Qe4 gxf3 41. Kxf3 Qxb3 42. Qg4+ Kf7 43. Qh5+ Kg7 44. Qg4+ Kf7 45. Qd7+ Kg6 46. Qd6 Kf5 47. Qxc5 Bg5 48. Qc8+ Kg6 49. Qe8+ Kh7 50. Qh5+ Bh6 51. Qf5+ Kg8 52. Qg6+ Bg7 53. Bxh4 Qd1+ 54. Kg3 Qe1+ 55. Kh3 Qxe3+ 56. Qg3 Qh6 57. Qb3+ Kh7 58. Qf7 Qe3+ 59. Qf3 Qh6 60. Qf5+ Kh8 61. Qg5 Qe6+ 62. Qg4 Qb3+ 63. Qf3 Qe6+ 64. g4 e4 65. Qe3 a6 66. Be1 Bh6 67. Qd4+ Kh7 68. Bc3 e3 69. Qh8+ Kg6 70. Qe5 Qxe5 71. Bxe5 e2 72. Bc3 Be3 73. Kg3 Kg5 74. h4+ Kh6 75. Kf3 Bc5 76. a4 Be7 77. Be1 Bf6 78. Kxe2 Kg6 79. Kf3 Bb2 80. Ke4 Bf6 81. Kd5 Bd8 82. Kc6 a5 83. Kb5 Kh6 84. g5+ Kh5 85. Bxa5 1-0

[Event "45th FIDE Womens Olympiad 2024"]
[Site "Budapest"]
[Date "2024.09.15"]
[Round "5.22"]
[White "Yildiz Kadioglu, Betul Cemre"]
[Black "Socko, Monika"]
[Result "1/2-1/2"]
[ECO "C01"]
[WhiteElo "2314"]
[BlackElo "2422"]
[Annotator "RC"]
[PlyCount "74"]
[EventDate "2024.09.05"]
[EventType "team-tourn"]
[EventCountry "HUN"]
[SourceTitle "playchess.com"]
[Source "ChessBase"]
[SourceQuality "1"]
[WhiteTeam "Turkiye"]
[BlackTeam "Poland"]
[WhiteTeamCountry "TUR"]
[BlackTeamCountry "POL"]
[TimeControl "40/5400+30:1800+30"]

1. e4 {[%emt 0:00:04]} e6 {[%emt 0:00:03]} 2. d4 {[%emt 0:00:04]} d5 {[%emt 0:00:03]} 3. Bd3 {[%emt 0:00:33]} dxe4 {[%emt 0:00:20]} 4. Bxe4 {[%emt 0:00:06]} Nf6 {[%emt 0:00:03]} 5. Bf3 {[%emt 0:00:05]} Bd6 {[%emt 0:00:11]} 6. Ne2 {[%emt 0:04:03]} O-O {[%emt 0:00:05]} 7. Nbc3 {[%emt 0:04:49]} c5 {[%emt 0:05:29]} 8. O-O {[%emt 0:04:48]} cxd4 {[%emt 0:03:02]} 9. Nxd4 {[%emt 0:00:53]} a6 {[%emt 0:00:39]} 10. Be3 {[%emt 0:11:24]} Qc7 {[%emt 0:09:33]} 11. g3 {[%emt 0:05:34]} Rd8 {[%emt 0:03:18]} 12. Qe2 {[%emt 0:05:51]} e5 {[%emt 0:05:13]} 13. Nb3 {[%emt 0:00:22]} Be6 {[%emt 0:06:44]} 14. Rfd1 {[%emt 0:01:25]} Nc6 {[%emt 0:01:23]} 15. Bg5 {[%emt 0:22:11]} Be7 {[%emt 0:10:52]} 16. Bxf6 {[%emt 0:03:15]} Bxf6 {[%emt 0:01:32]} 17. Nd5 {[%emt 0:01:34]} Bxd5 {[%emt 0:01:30]} 18. Bxd5 {[%emt 0:02:58]} Nd4 {[%emt 0:01:24]} 19. Nxd4 {[%emt 0:03:53]} exd4 {[%emt 0:10:48]} 20. Bb3 {[%emt 0:12:04]} a5 {[%emt 0:04:35]} 21. a4 {[%emt 0:02:44]} g6 {[%emt 0:02:10]} 22. Rd3 {[%emt 0:04:52]} Re8 {[%emt 0:03:50]} 23. Qg4 {[%emt 0:04:31]} Qc6 {[%emt 0:03:13]} 24. Qf3 {[%emt 0:01:55]} Re4 {[%emt 0:05:37]} 25. Rad1 {[%emt 0:01:22]} Rae8 {[%emt 0:02:56]} 26. c3 {[%emt 0:01:25]} Re1+ {[%emt 0:05:05]} 27. Rxe1 {[%emt 0:00:11]} Rxe1+ {[%emt 0:00:01]} 28. Kg2 {[%emt 0:00:01]} Qxf3+ {[%emt 0:01:24]} 29. Rxf3 {[%emt 0:00:55]} dxc3 {[%emt 0:00:51]} 30. bxc3 {[%emt 0:00:18]} Kg7 {[%emt 0:00:07]} 31. Bd5 {[%emt 0:01:11]} b6 {[%emt 0:02:32]} 32. c4 {[%emt 0:00:30]} Re7 {[%emt 0:00:22]} 33. Re3 {[%emt 0:00:31]} Rxe3 {[%emt 0:01:33]} 34. fxe3 {[%emt 0:00:02]} Bc3 {[%emt 0:00:07]} 35. Kf3 {[%emt 0:00:07]} f5 {[%emt 0:00:12]} 36. e4 {[%emt 0:00:07]} Kf6 {[%emt 0:00:10]} 37. exf5 {[%emt 0:00:13]} gxf5 {[%emt 0:00:08]} 1/2-1/2

[Event "45th FIDE Womens Olympiad 2024"]
[Site "Budapest"]
[Date "2024.09.15"]
[Round "5.22"]
[White "Danwe, Maissiri Carole"]
[Black "Ntsielo, Bonolo"]
[Result "0-1"]
[ECO "C02"]
[WhiteElo "1456"]
[BlackElo "1757"]
[PlyCount "94"]
[EventDate "2024.09.05"]
[EventType "team-tourn"]
[EventCountry "HUN"]
[WhiteTeam "Cameroon"]
[BlackTeam "Lesotho"]
[WhiteTeamCountry "CAM"]
[BlackTeamCountry "LES"]
[TimeControl "40/5400+30:1800+30"]

1. e4 e6 2. d4 d5 3. e5 c5 4. c3 Qb6 5. Nf3 Nc6 6. Be2 Bd7 7. O-O Nge7 8. Qc2 cxd4 9. cxd4 Nxd4 10. Nxd4 Qxd4 11. Qc3 Nc6 12. Qxd4 Nxd4 13. Bd3 Nc6 14. Re1 Bc5 15. Nc3 a6 16. Be3 d4 17. Ne4 Bb4 18. Bd2 Bxd2 19. Nxd2 Nb4 20. Be4 Bc6 21. a3 Bxe4 22. Rxe4 Nc6 23. Nb3 Rd8 24. Rd1 O-O 25. Nxd4 Rd5 26. f4 Rfd8 27. g3 Rxd4 28. Rdxd4 Rxd4 29. Re3 Rd1+ 30. Kf2 Rd2+ 31. Re2 Rxe2+ 32. Kxe2 Kf8 33. Kd3 Ke8 34. Kc4 Kd7 35. b4 b5+ 36. Kc5 Kc7 37. h3 Ne7 38. g4 Ng6 39. f5 exf5 40. gxf5 Nxe5 41. Kd5 Nc4 42. h4 Nxa3 43. Ke5 Nc2 44. f6 g6 45. Kf4 h6 46. Kg4 Nxb4 47. h5 g5 {0-} 0-1

[Event "45th FIDE Womens Olympiad 2024"]
[Site "Budapest"]
[Date "2024.09.15"]
[Round "5.23"]
[White "Maltsevskaya, Aleksandra"]
[Black "Aydin, Gulenay"]
[Result "1-0"]
[ECO "D02"]
[WhiteElo "2404"]
[BlackElo "2202"]
[Annotator "TA"]
[PlyCount "101"]
[EventDate "2024.09.05"]
[EventType "team-tourn"]
[EventCountry "HUN"]
[SourceTitle "playchess.com"]
[Source "ChessBase"]
[SourceQuality "1"]
[WhiteTeam "Poland"]
[BlackTeam "Turkiye"]
[WhiteTeamCountry "POL"]
[BlackTeamCountry "TUR"]
[TimeControl "40/5400+30:1800+30"]

{[%evp 9,101,0,15,11,39,29,34,6,30,41,40,29,44,9,20,13,30,10,20,8,13,-6,12,12,16,9,16,0,0,0,0,0,0,0,31,-14,0,-7,-7,-29,0,0,0,0,0,0,0,0,0,0,0,0,0,8,0,-272,88,96,148,160,179,179,497,295,308,302,317,303,323,315,327,293,333,339,590,416,638,642,577,534,1202,915,29969,29970,29968,29972,29976,29975,29979,29980,29990,29991,29994,29995]} 1. d4 {[%emt 0:00:06]} d5 {[%emt 0:00:16]} 2. Nf3 {[%emt 0:00:08]} Nf6 {[%emt 0:00:29]} 3. Bf4 {[%emt 0:00:10]} c5 {[%emt 0:04:43]} 4. e3 {[%emt 0:00:09]} Nc6 {[%emt 0:01:16]} 5. Nbd2 {[%emt 0:00:13]} cxd4 {[%emt 0:15:57]} 6. exd4 {[%emt 0:00:07]} g6 {[%emt 0:01:01]} 7. c3 {[%emt 0:05:59]} Bg7 {[%emt 0:02:23]} 8. Bb5 {[%emt 0:04:32] White is slightly better.} Bd7 {[%emt 0:17:05]} 9. O-O {[%emt 0:00:32]} O-O {[%emt 0:00:23]} 10. Re1 {[%emt 0:12:47]} a6 {[%emt 0:02:37]} 11. Bxc6 {[%emt 0:02:14]} Bxc6 {[%emt 0:00:06]} 12. Ne5 {[%emt 0:01:20]} Rc8 {[%emt 0:09:58]} 13. h3 {[%emt 0:05:17]} Re8 {[%emt 0:04:36]} 14. Qb3 {[%emt 0:06:12]} e6 {[%emt 0:06:29]} 15. Nxc6 {[%emt 0:06:30]} Rxc6 {[%emt 0:01:41]} 16. a4 {[%emt 0:03:37]} (16. Qxb7 Rb6 17. Qc7 (17. Qa7 $2 Re7 $19) 17... Qxc7 18. Bxc7 Rxb2 $17) 16... b6 {[%emt 0:06:12]} 17. Be5 {[%emt 0:06:37]} Nd7 {[%emt 0:07:20]} 18. Bxg7 {[%emt 0:00:08]} Kxg7 {[%emt 0:00:02]} 19. Nf3 {[%emt 0:00:41]} Qc7 {[%emt 0:02:16]} 20. Re3 {[%emt 0:00:26]} Rb8 {[%emt 0:02:09]} 21. Ne1 {[%emt 0:07:53]} b5 {[%emt 0:05:41]} 22. axb5 {[%emt 0:02:41]} Rxb5 {[%emt 0:00:02]} 23. Qc2 {[%emt 0:00:07]} e5 {[%emt 0:02:09]} 24. Qe2 {[%emt 0:03:08]} (24. dxe5 {looks sharper.} d4 25. Rd3 Nc5 26. Rg3) 24... e4 {[%emt 0:02:21]} 25. Rxa6 {[%emt 0:00:23]} Rxa6 {[%emt 0:01:40]} 26. Qxb5 {[%emt 0:00:06]} Ra5 {[%emt 0:00:05]} 27. Qb4 {[%emt 0:09:52]} (27. Qb3 {simplifies} Qb6 28. Qxb6 Nxb6 29. Re2) 27... Ra1 {[%emt 0:00:57]} 28. Qe7 {[%emt 0:00:51]} Qc6 {[%emt 0:00:37]} 29. f3 {[%emt 0:08:42][%cal Rf3e4]} Nf6 {[%emt 0:02:29]} 30. Qe5 {[%emt 0:00:09]} Qb6 {[%emt 0:01:46]} 31. fxe4 {[%emt 0:01:15]} dxe4 {[%emt 0:00:02]} 32. Rxe4 $2 {[%emt 0:01:17][%mdl 8192]} (32. b4 $11 {and White has nothing to worry.}) 32... Qxb2 $2 {[%emt 0:00:12]} (32... Ra5 $1 $19 {[%cal Ra5e5]} 33. Qe7 Nxe4 (33... Qxb2 34. Rf4 $11) 34. Qxe4 Qxb2) 33. Rf4 $16 {[%emt 0:00:30]} Ra6 {[%emt 0:00:27]} (33... Qb6 $142) 34. d5 $1 {[%emt 0:01:35]} Qb6+ {[%emt 0:00:53] [#]} 35. Kh2 $1 {[%emt 0:00:42]} Ra1 $2 {[%emt 0:01:01]} (35... Qd6 36. Qxd6 Rxd6) 36. Nf3 {[%emt 0:02:43]} (36. d6 $142 Qd8 37. Nd3) 36... Ra6 $18 {[%emt 0:00:24]} 37. c4 {[%emt 0:02:23] Hoping for Ng5.} Qd6 {[%emt 0:00:13]} 38. Qxd6 {[%emt 0:04:57]} Rxd6 {[%emt 0:00:02][%mdl 4096] Endgame. KRN-KRN} 39. Ne5 {[%emt 0:00:16]} Rd8 {[%emt 0:00:59]} 40. Rd4 {[%emt 0:02:10] Threatens to win with d6.} Re8 {[%emt 0:00:49] [#]} 41. Nd3 {[%emt 0:30:57]} Re4 $2 {[%emt 0:13:47]} (41... Rd8 {was called for.} 42. Kg3 (42. d6 Nd7 $18) 42... Ng8) 42. Rxe4 {[%emt 0:00:00]} Nxe4 {[%emt 0:00:03] KN-KN} 43. c5 {[%emt 0:00:00]} Kf6 {[%emt 0:03:44]} 44. g4 {[%emt 0:00:00][%cal Bg2g4,Bg4g5][%mdl 32]} Nc3 {[%emt 0:06:20] [#]} 45. g5+ $1 {[%emt 0:00:00][%mdl 512]} Kf5 {[%emt 0:06:31]} (45... Kxg5 46. d6) 46. d6 {[%emt 0:00:00][%cal Bd5d6,Bd6d7][%mdl 32] White mates.} Ke6 {[%emt 0:00:11] [#]} 47. Ne5 $1 {[%emt 0:00:00][%mdl 512]} Ne4 {[%emt 0:01:05]} (47... Nd5 48. d7) 48. d7 {[%emt 0:00:00]} Ke7 {[%emt 0:00:05]} 49. c6 {[%emt 0:00:00][%cal Bc5c6,Bc6c7][%mdl 32]} Nxg5 {[%emt 0:00:41]} 50. c7 {[%emt 0:00:00]} Nf3+ {[%emt 0:00:07]} 51. Kg3 {[%emt 0:00:00] Weighted Error Value: White=0.22 (precise) /Black=0.46.  Loses game:     	White=1     	---        Missed win:     	---       	Black=1      Mistake:       	White=1     	Black=3      Inaccurate:     	White=3     	Black=5      OK:         	White=12    	Black=7      Best:        	White=3     	Black=1      Strong:       	White=2     	---        Brilliant:      	White=1     	---} 1-0